bitfinex-derivatives/quotes_BTCF0:USTF0_20251011
["timestamp","ask_amount","ask_price","bid_price","bid_amount"]
[1760155022410,0.87708684,112250.0,112240.0,0.15315]
[1760155022610,0.92476562,112250.0,112240.0,0.15315]
[1760155023209,0.87708684,112250.0,112240.0,0.15315]
[1760155023416,0.87708684,112250.0,112240.0,0.17611]
[1760155023810,1.33791086,112250.0,112240.0,0.17611]
[1760155024212,1.29017822,112250.0,112240.0,0.17611]
[1760155024413,0.92483845,112250.0,112240.0,0.17611]
[1760155024918,0.87708684,112250.0,112240.0,0.17611]
[1760155025513,1.29017822,112250.0,112240.0,0.17611]
[1760155026211,1.29017822,112250.0,112220.0,0.01315]
[1760155026212,0.0890046,112230.0,112220.0,0.01315]
[1760155026413,1.25099412,112230.0,112220.0,0.13315]
[1760155026808,0.83790274,112230.0,112220.0,0.13315]
[1760155027215,0.83790274,112230.0,112220.0,0.15611]
[1760155027816,1.65099412,112230.0,112220.0,0.15611]
[1760155028113,1.71462145,112230.0,112220.0,0.13315]
[1760155028321,1.71462145,112230.0,112220.0,0.12]
[1760155029114,1.65099412,112230.0,112220.0,0.12]
[1760155029318,1.25099412,112230.0,112220.0,0.13315]
[1760155029619,1.65099412,112230.0,112220.0,0.12]
[1760155029812,1.69865571,112230.0,112220.0,0.12]
[1760155030213,1.23790274,112230.0,112220.0,0.12]
[1760155030412,1.65099412,112230.0,112220.0,0.12]
[1760155032216,1.6986062,112230.0,112220.0,0.12]
[1760155032417,1.67130806,112230.0,112220.0,0.12]
[1760155032617,1.29756822,112230.0,112220.0,0.13315]
[1760155033013,0.79546352,112230.0,112220.0,0.2451225]
[1760155033619,0.82720493,112230.0,112220.0,0.6451225]
[1760155033821,0.05800157,112230.0,112220.0,0.6451225]
[1760155034119,0.02626016,112230.0,112220.0,0.6451225]
[1760155034512,0.38706016,112230.0,112220.0,0.6451225]
[1760155035318,0.02626016,112230.0,112220.0,0.6451225]
[1760155035919,0.38706016,112230.0,112220.0,0.6451225]
[1760155036521,0.02626016,112230.0,112220.0,0.6451225]
[1760155036821,0.38706016,112230.0,112220.0,0.2451225]
[1760155038316,0.02626016,112230.0,112220.0,0.6451225]
[1760155038520,0.02626016,112230.0,112220.0,1.0059225]
[1760155038720,0.02626016,112230.0,112220.0,0.6451225]
[1760155040326,0.38706016,112230.0,112220.0,0.6451225]
[1760155040519,0.02626016,112230.0,112220.0,0.6451225]
[1760155040720,0.38706016,112230.0,112220.0,0.6451225]
[1760155040916,0.02626016,112230.0,112220.0,0.6451225]
[1760155041122,0.38706016,112230.0,112220.0,0.6451225]
[1760155041825,0.38706016,112230.0,112220.0,0.15611]
[1760155042021,0.38706016,112230.0,112220.0,0.2451225]
[1760155043326,0.02626016,112230.0,112220.0,0.2451225]
[1760155044322,0.02626016,112230.0,112220.0,0.6451225]
[1760155044720,0.38706016,112230.0,112220.0,0.6451225]
[1760155045125,0.38706016,112230.0,112220.0,0.2451225]
[1760155047124,0.02626016,112230.0,112220.0,0.2451225]
[1760155047320,0.02626016,112230.0,112220.0,0.6451225]
[1760155048229,0.02626016,112230.0,112220.0,1.0059225]
[1760155050022,0.02626016,112230.0,112220.0,0.6451225]
[1760155051530,0.02626016,112230.0,112220.0,0.2451225]
[1760155052429,0.38706016,112230.0,112220.0,0.2451225]
[1760155054333,0.47606476,112230.0,112220.0,0.15611]
[1760155054537,0.90780617,112230.0,112220.0,0.13315]
[1760155055038,0.92366812,112230.0,112220.0,0.12]
[1760155055238,0.87606476,112230.0,112220.0,0.12]
[1760155056237,0.47606476,112230.0,112220.0,0.12]
[1760155056431,0.47606476,112230.0,112220.0,0.133]
[1760155056635,0.52390699,112230.0,112220.0,0.133]
[1760155057239,0.43490239,112230.0,112220.0,0.2440325]
[1760155057738,0.46679717,112230.0,112220.0,0.2440325]
[1760155057935,0.41895494,112230.0,112220.0,0.2440325]
[1760155058337,0.46679717,112230.0,112220.0,0.2440325]
[1760155058740,0.41895494,112230.0,112220.0,0.2440325]
[1760155059341,0.38706016,112230.0,112220.0,0.2440325]
[1760155060242,0.02626016,112230.0,112220.0,0.2440325]
[1760155060443,0.02626016,112230.0,112220.0,0.6440325]
[1760155060840,0.02626016,112230.0,112220.0,1.0048325]
[1760155061045,0.02626016,112230.0,112220.0,0.6440325]
[1760155061436,0.39269478,112240.0,112220.0,0.6440325]
[1760155061642,7e-08,112240.0,112230.0,0.4848246]
[1760155061841,0.04784223,112260.0,112250.0,0.1240087]
[1760155062139,0.04784223,112260.0,112250.0,0.2440087]
[1760155062336,0.43123223,112270.0,112260.0,0.1240008]
[1760155062536,0.43123223,112270.0,112260.0,0.2440008]
[1760155062747,0.38339,112270.0,112260.0,0.2440008]
[1760155062946,0.4723629,112270.0,112260.0,0.15502]
[1760155063145,0.38339,112270.0,112260.0,0.15502]
[1760155063344,0.38339,112270.0,112260.0,0.2440008]
[1760155064045,0.3608,112280.0,112270.0,0.0889729]
[1760155064242,0.38339,112280.0,112270.0,0.2439929]
[1760155064446,0.43123223,112290.0,112280.0,0.03502]
[1760155064652,0.79203223,112290.0,112280.0,0.17502]
[1760155064850,0.74419,112290.0,112280.0,0.263985]
[1760155065949,0.3608,112290.0,112280.0,0.263985]
[1760155066252,0.3608,112290.0,112280.0,0.663985]
[1760155066653,0.38339,112310.0,112300.0,0.1239691]
[1760155066953,0.38339,112310.0,112300.0,0.2339691]
[1760155067943,0.4723312,112310.0,112300.0,0.14502]
[1760155068247,1.22378064,112310.0,112300.0,0.11]
[1760155069250,0.92017343,112310.0,112300.0,0.11]
[1760155069450,1.27162287,112310.0,112300.0,0.11]
[1760155069849,1.22378064,112310.0,112300.0,0.11]
[1760155070250,0.38339,112310.0,112300.0,0.2339891]
[1760155071348,0.49757053,112330.0,112320.0,0.01394]
[1760155071544,0.52088053,112330.0,112320.0,0.14662]
[1760155071745,0.43195223,112330.0,112320.0,0.2355533]
[1760155071946,0.07115223,112330.0,112320.0,0.2355533]
[1760155072252,0.02331,112330.0,112320.0,0.2355533]
[1760155073149,0.87231917,112340.0,112330.0,0.03662]
[1760155073349,0.87231917,112340.0,112330.0,0.15662]
[1760155073552,0.04784223,112340.0,112330.0,1.0063454]
[1760155073748,0.04784223,112340.0,112330.0,0.6063454]
[1760155073953,0.04784223,112350.0,112340.0,0.1255374]
[1760155074253,0.02647405,112350.0,112340.0,1.0063374]
[1760155074453,0.02647405,112350.0,112340.0,0.6455374]
[1760155074650,0.02647405,112350.0,112340.0,1.0063374]
[1760155074948,0.02647405,112350.0,112340.0,0.91742]
[1760155075148,0.04978405,112350.0,112340.0,0.51742]
[1760155076152,0.49949355,112350.0,112340.0,0.15662]
[1760155076350,0.89949355,112350.0,112340.0,0.13394]
[1760155076551,1.30813578,112350.0,112340.0,0.12]
[1760155076955,1.31954578,112350.0,112340.0,0.12]
[1760155077456,1.30813578,112350.0,112340.0,0.12]
[1760155078252,1.30813578,112350.0,112340.0,0.13394]
[1760155078253,1.65958522,112350.0,112340.0,0.13394]
[1760155078451,0.53798522,112350.0,112340.0,0.15662]
[1760155078656,1.29878522,112350.0,112340.0,0.12]
[1760155078950,0.94733578,112350.0,112340.0,0.12]
[1760155079150,1.25094299,112350.0,112340.0,0.12]
[1760155079350,0.89014299,112350.0,112340.0,0.13394]
[1760155079551,1.25094299,112350.0,112340.0,0.15662]
[1760155079751,1.25094299,112350.0,112340.0,0.2455374]
[1760155079950,1.25094299,112350.0,112340.0,0.15662]
[1760155080345,0.40123349,112350.0,112340.0,0.2455374]
[1760155080552,0.40123349,112350.0,112340.0,0.6063374]
[1760155080553,0.04978405,112350.0,112340.0,0.6063374]
[1760155080753,0.02647405,112350.0,112340.0,1.0063374]
[1760155081752,0.07115223,112380.0,112370.0,0.1255137]
[1760155081954,0.02331,112380.0,112370.0,0.6063137]
[1760155082760,0.02331,112380.0,112370.0,0.15662]
[1760155083056,0.3608,112390.0,112370.0,0.6455129]
[1760155083355,0.02331,112400.0,112390.0,0.03662]
[1760155083560,0.02331,112400.0,112390.0,0.14662]
[1760155084550,0.02331,112400.0,112390.0,0.2354979]
[1760155084761,0.3608,112410.0,112390.0,0.2354979]
[1760155084762,0.38411,112410.0,112400.0,0.03662]
[1760155084961,0.38411,112410.0,112400.0,0.15662]
[1760155085156,0.38411,112410.0,112400.0,0.24549]
[1760155085157,0.3608,112410.0,112400.0,0.24549]
[1760155085357,0.3608,112410.0,112400.0,0.64549]
[1760155085662,0.38411,112410.0,112400.0,0.15662]
[1760155085863,0.38411,112410.0,112400.0,0.24549]
[1760155086764,0.38411,112410.0,112400.0,0.15662]
[1760155087059,0.02331,112410.0,112400.0,0.24549]
[1760155087262,0.38411,112420.0,112410.0,0.03662]
[1760155087457,0.38411,112420.0,112410.0,0.15662]
[1760155087659,0.4729642,112420.0,112410.0,0.15662]
[1760155087857,0.4843742,112420.0,112410.0,0.12]
[1760155088667,0.4729642,112420.0,112410.0,0.14268]
[1760155089558,0.4843742,112420.0,112410.0,0.14268]
[1760155089765,0.4729642,112420.0,112410.0,0.15662]
[1760155090258,0.02331,112420.0,112410.0,0.2454821]
[1760155090463,0.4729569,112430.0,112420.0,0.03662]
[1760155090652,0.4729569,112430.0,112420.0,0.15662]
[1760155090859,0.3608,112430.0,112420.0,0.15662]
[1760155091058,0.38411,112440.0,112430.0,0.1254663]
[1760155091353,0.38411,112440.0,112430.0,0.2239054]
[1760155091760,0.41568599,112440.0,112430.0,0.2239054]
[1760155092061,0.51071583,112450.0,112430.0,0.9847054]
[1760155092062,0.39237599,112450.0,112430.0,0.9847054]
[1760155092266,0.05488599,112450.0,112440.0,0.1254584]
[1760155092563,0.41568599,112460.0,112450.0,0.03662]
[1760155092765,0.38411,112460.0,112450.0,0.2554505]
[1760155093161,0.3608,112460.0,112450.0,0.6554505]
[1760155093466,0.05488599,112470.0,112460.0,0.03662]
[1760155093664,0.05488599,112470.0,112460.0,0.16662]
[1760155093864,0.04928698,112470.0,112460.0,0.16662]
[1760155094163,0.04928698,112470.0,112460.0,0.2554426]
[1760155094365,0.02597698,112470.0,112460.0,0.2554426]
[1760155095065,0.02597698,112470.0,112460.0,0.16662]
[1760155095963,0.02597698,112470.0,112460.0,0.2554426]
[1760155096164,0.02597698,112470.0,112460.0,0.6554426]
[1760155096365,0.02597698,112470.0,112460.0,1.0162426]
[1760155096557,0.3608,112490.0,112480.0,0.1254269]
[1760155096760,0.38664744,112490.0,112480.0,0.16662]
[1760155097264,0.40995744,112490.0,112480.0,0.16662]
[1760155097465,0.86161588,112490.0,112480.0,0.13]
[1760155097764,1.22241588,112490.0,112480.0,0.13]
[1760155097964,1.60941588,112490.0,112480.0,0.13]
[1760155099572,0.1253656,112470.0,112450.0,0.08394]
[1760155099768,0.42319744,112470.0,112450.0,0.2427679]
[1760155099969,0.51201274,112470.0,112450.0,0.2427679]
[1760155100264,0.0888226,112460.0,112450.0,0.15394]
[1760155100472,0.49905455,112460.0,112450.0,0.14]
[1760155100674,0.91229455,112460.0,112450.0,0.14]
[1760155101472,0.02325,112440.0,112430.0,0.124346]
[1760155101675,0.02325,112440.0,112430.0,0.244346]
[1760155101872,0.1120884,112440.0,112430.0,0.14156]
[1760155102078,0.06078195,112440.0,112430.0,0.2088463]
[1760155102266,0.42158195,112440.0,112430.0,0.2088463]
[1760155102465,0.42158195,112440.0,112430.0,0.2304063]
[1760155102671,0.41017195,112440.0,112430.0,0.2304063]
[1760155103574,0.82156242,112440.0,112430.0,0.2304063]
[1760155103773,0.91040082,112440.0,112430.0,0.14156]
[1760155103974,0.92181082,112440.0,112430.0,0.12]
[1760155104772,1.32181082,112440.0,112430.0,0.12]
[1760155104978,1.35338681,112440.0,112430.0,0.12]
[1760155105175,1.36965305,112440.0,112430.0,0.12]
[1760155105474,0.02325,112410.0,112400.0,0.2255]
[1760155105776,0.04937195,112410.0,112400.0,0.15043]
[1760155106070,0.04937195,112410.0,112400.0,0.52523]
[1760155106474,0.04937195,112410.0,112400.0,0.16443]
[1760155106877,0.04937195,112410.0,112400.0,0.52523]
[1760155107068,0.02612195,112410.0,112400.0,0.92523]
[1760155107273,0.03159585,112420.0,112410.0,0.1244221]
[1760155107471,0.44332264,112420.0,112410.0,0.16556]
[1760155107672,0.95497731,112420.0,112410.0,0.13]
[1760155107876,1.35497731,112420.0,112410.0,0.13]
[1760155108078,0.95497731,112420.0,112410.0,0.13]
[1760155108273,0.87051104,112420.0,112410.0,0.15156]
[1760155108778,1.37077524,112420.0,112410.0,0.13]
[1760155109480,1.32438146,112420.0,112410.0,0.13]
[1760155109876,1.32438146,112420.0,112410.0,0.15156]
[1760155110181,0.9222856,112420.0,112410.0,0.2188621]
[1760155110383,0.47169793,112420.0,112410.0,0.2404221]
[1760155110682,0.8716784,112420.0,112410.0,0.2404221]
[1760155110981,0.9605326,112420.0,112410.0,0.2404221]
[1760155111281,1.3719426,112420.0,112410.0,0.13]
[1760155111477,1.32438146,112420.0,112410.0,0.13]
[1760155111675,0.91299099,112420.0,112410.0,0.13]
[1760155111878,1.32438146,112420.0,112410.0,0.13]
[1760155112776,1.38800879,112420.0,112410.0,0.13]
[1760155112981,1.38800879,112420.0,112390.0,0.00011227]
[1760155112982,0.12353,112400.0,112390.0,0.00011227]
[1760155113175,0.92339726,112400.0,112390.0,0.01011227]
[1760155113376,1.34767667,112400.0,112390.0,0.01011227]
[1760155113581,1.28419726,112400.0,112390.0,0.01011227]
[1760155115082,1.34767667,112400.0,112390.0,0.01011227]
[1760155115282,1.28419726,112400.0,112390.0,0.01011227]
[1760155115479,0.87280679,112400.0,112390.0,0.01011227]
[1760155115683,1.28419726,112400.0,112390.0,0.01011227]
[1760155116774,0.02637,112370.0,112360.0,0.18]
[1760155116978,0.88745437,112370.0,112360.0,0.13]
[1760155117282,0.91513116,112370.0,112360.0,0.13]
[1760155117482,1.31513116,112370.0,112360.0,0.13]
[1760155117779,1.31523091,112370.0,112360.0,0.13]
[1760155117983,1.37966929,112370.0,112360.0,0.13]
[1760155118182,0.96827882,112370.0,112360.0,0.13]
[1760155118385,1.37966929,112370.0,112360.0,0.13]
[1760155118586,1.37866929,112370.0,112360.0,0.13]
[1760155118782,1.37966929,112370.0,112360.0,0.13]
[1760155119085,1.31623091,112370.0,112360.0,0.13]
[1760155119284,1.36372914,112370.0,112360.0,0.13]
[1760155119683,1.31623091,112370.0,112360.0,0.13]
[1760155119983,0.96372676,112370.0,112360.0,0.15156]
[1760155120184,0.96060676,112370.0,112360.0,0.16556]
[1760155120686,0.96372676,112370.0,112360.0,0.13]
[1760155121989,1.3478572,112370.0,112360.0,0.13]
[1760155122186,1.36372676,112370.0,112360.0,0.13]
[1760155122682,1.36372676,112370.0,112360.0,0.0192]
[1760155122885,0.1235775,112340.0,112330.0,0.2]
[1760155123080,0.46240354,112340.0,112330.0,0.2444854]
[1760155123280,0.46240354,112340.0,112330.0,0.15556]
[1760155123485,0.46240354,112340.0,112330.0,0.2444854]
[1760155123684,0.05101307,112340.0,112330.0,0.2444854]
[1760155123985,0.02776307,112340.0,112330.0,1.0052854]
[1760155124591,0.41181307,112340.0,112330.0,0.15556]
[1760155124888,0.05101307,112340.0,112330.0,0.15556]
[1760155125285,0.05101307,112340.0,112330.0,0.2444854]
[1760155125487,0.05101307,112340.0,112330.0,0.6052854]
[1760155125685,0.02776307,112340.0,112330.0,1.0052854]
[1760155130286,0.46487117,112370.0,112360.0,0.1228816]
[1760155130595,0.05955822,112370.0,112360.0,0.6236816]
[1760155130798,0.02794752,112370.0,112360.0,0.6236816]
[1760155131095,0.02794752,112370.0,112360.0,1.0236816]
[1760155131687,0.00702002,112370.0,112360.0,1.0236816]
[1760155132892,0.00702002,112370.0,112360.0,0.6236816]
[1760155134595,0.00702002,112370.0,112360.0,1.0236816]
[1760155135394,0.00702002,112370.0,112360.0,0.6236816]
[1760155136296,0.00702002,112370.0,112360.0,1.0236816]
[1760155136592,0.07902675,112400.0,112390.0,0.0888779]
[1760155136791,0.07902675,112400.0,112390.0,0.6136079]
[1760155137297,0.0316107,112400.0,112390.0,0.6136079]
[1760155137694,0.0316107,112410.0,112400.0,0.1228]
[1760155137900,0.0316107,112410.0,112400.0,0.6036]
[1760155138195,0.07902675,112420.0,112410.0,0.1227921]
[1760155138400,0.07902675,112420.0,112410.0,0.2427921]
[1760155138401,0.10093675,112420.0,112410.0,0.2427921]
[1760155138694,0.06932605,112420.0,112410.0,0.6035921]
[1760155138902,0.51898025,112420.0,112410.0,0.15393]
[1760155139198,0.93213025,112420.0,112410.0,0.12]
[1760155139393,0.8847142,112420.0,112410.0,0.12]
[1760155140300,0.02191,112420.0,112410.0,0.2427921]
[1760155140598,0.07063495,112420.0,112410.0,0.6035921]
[1760155140797,0.07063495,112420.0,112410.0,0.15393]
[1760155140998,0.52028915,112420.0,112410.0,0.15393]
[1760155141194,0.15948915,112420.0,112410.0,0.15393]
[1760155142702,1.34482962,112420.0,112410.0,0.12]
[1760155143203,1.29710467,112420.0,112410.0,0.12]
[1760155145102,0.89710467,112420.0,112410.0,0.12]
[1760155145313,0.94480411,112420.0,112410.0,0.12]
[1760155145895,1.25594991,112420.0,112410.0,0.2301021]
[1760155146101,0.48199991,112420.0,112410.0,0.2427921]
[1760155146303,0.29788945,112420.0,112410.0,0.2427921]
[1760155146505,0.29788945,112420.0,112410.0,1.0035921]
[1760155146706,0.2661,112420.0,112410.0,1.0035921]
[1760155146907,0.001,112420.0,112410.0,1.0035921]
[1760155148609,0.02637497,112420.0,112410.0,1.0035921]
[1760155150105,0.07948889,112470.0,112460.0,0.0888226]
[1760155150307,0.41449945,112470.0,112460.0,0.17393]
[1760155150507,0.05369945,112470.0,112460.0,0.17393]
[1760155150806,0.38271,112470.0,112460.0,0.17393]
[1760155151011,0.02191,112470.0,112460.0,0.2627526]
[1760155151211,0.02191,112480.0,112470.0,0.1227447]
[1760155151405,0.02191,112480.0,112470.0,0.5935447]
[1760155151601,0.02191,112490.0,112480.0,0.1227368]
[1760155151805,0.02191,112490.0,112480.0,0.5935368]
[1760155152207,0.02191,112490.0,112480.0,0.2327368]
[1760155152408,0.1107089,112490.0,112480.0,0.14393]
[1760155152706,0.1107089,112490.0,112480.0,0.11]
[1760155152707,0.8846589,112490.0,112480.0,0.11]
[1760155153012,0.91644835,112490.0,112480.0,0.11]
[1760155154009,1.32783882,112490.0,112480.0,0.11]
[1760155154710,1.34374881,112490.0,112480.0,0.11]
[1760155156109,1.34356082,112490.0,112480.0,0.11]
[1760155156309,1.29604937,112490.0,112480.0,0.11]
[1760155156512,1.29604937,112490.0,112480.0,0.075]
[1760155157809,1.29604937,112490.0,112450.0,0.18]
[1760155157810,0.0888226,112460.0,112450.0,0.19269]
[1760155158007,0.86101307,112460.0,112450.0,0.11269]
[1760155158203,0.89270731,112460.0,112450.0,0.11269]
[1760155158912,0.89270731,112460.0,112450.0,0.13393]
[1760155159114,0.90855443,112460.0,112450.0,0.13393]
[1760155159314,0.81973183,112460.0,112450.0,0.2227605]
[1760155159615,0.89716396,112460.0,112450.0,0.11269]
[1760155159814,0.90855443,112460.0,112450.0,0.13393]
[1760155161914,0.93398951,112460.0,112450.0,0.13393]
[1760155163511,0.52259904,112460.0,112450.0,0.13393]
[1760155163818,0.52259904,112460.0,112450.0,0.11269]
[1760155164115,0.47505768,112460.0,112450.0,0.11269]
[1760155164914,0.53849606,112460.0,112450.0,0.11269]
[1760155166217,0.93849606,112460.0,112450.0,0.1]
[1760155166418,0.87505768,112460.0,112450.0,0.1]
[1760155167018,0.38623508,112460.0,112450.0,0.2243705]
[1760155167416,0.38623508,112460.0,112450.0,0.6243705]
[1760155167817,0.47505768,112460.0,112450.0,0.6243705]
[1760155168017,0.52277431,112460.0,112450.0,0.6243705]
[1760155168217,0.47505768,112460.0,112450.0,0.6243705]
[1760155168616,0.02543508,112460.0,112450.0,0.6243705]
[1760155168816,0.40852007,112460.0,112450.0,0.6243705]
[1760155169017,0.16197775,112460.0,112450.0,0.6243705]
[1760155169318,0.14607162,112460.0,112450.0,0.6243705]
[1760155169508,0.14607162,112460.0,112450.0,0.13554]
[1760155169910,0.50687162,112460.0,112450.0,0.2243705]
[1760155170918,0.50687162,112460.0,112450.0,0.13554]
[1760155172621,0.52277775,112460.0,112450.0,0.13554]
[1760155173722,0.52277775,112460.0,112450.0,0.2243704]
[1760155174422,0.16197775,112460.0,112450.0,0.2243704]
[1760155174824,0.11425768,112460.0,112450.0,0.2243704]
[1760155175123,0.16197775,112460.0,112450.0,0.13554]
[1760155175324,0.52277775,112460.0,112450.0,0.13554]
[1760155176422,0.52277775,112460.0,112450.0,0.2243704]
[1760155176620,0.52277775,112460.0,112450.0,0.13554]
[1760155179130,0.52294256,112460.0,112450.0,0.13554]
[1760155179322,0.47505768,112460.0,112450.0,0.13554]
[1760155181824,0.53866851,112460.0,112450.0,0.13554]
[1760155182822,0.53866851,112460.0,112450.0,0.11374]
[1760155183023,0.0888304,112450.0,112440.0,0.01269]
[1760155183227,0.82520731,112450.0,112440.0,0.01269]
[1760155183622,0.82520731,112450.0,112440.0,0.03449]
[1760155183827,0.87315315,112450.0,112440.0,0.14449]
[1760155184027,0.52301132,112450.0,112440.0,0.14449]
[1760155184223,0.47506548,112450.0,112440.0,0.14449]
[1760155184922,0.47506548,112450.0,112440.0,0.9941283]
[1760155184923,0.07338458,112450.0,112440.0,0.9941283]
[1760155185322,0.0479495,112450.0,112440.0,0.9941283]
[1760155185520,0.07338458,112450.0,112440.0,0.6333283]
[1760155185725,0.0479495,112450.0,112440.0,0.6333283]
[1760155186026,0.52301498,112450.0,112440.0,0.14449]
[1760155187724,0.16221498,112450.0,112440.0,0.14449]
[1760155187929,0.52301498,112450.0,112440.0,0.14449]
[1760155188325,0.50704072,112450.0,112440.0,0.14449]
[1760155188629,0.14624072,112450.0,112440.0,0.14449]
[1760155189021,0.05741032,112450.0,112440.0,0.6333283]
[1760155189224,0.02543508,112450.0,112440.0,0.6333283]
[1760155190932,0.02543508,112450.0,112440.0,0.9941283]
[1760155194131,0.47506548,112450.0,112440.0,0.14449]
[1760155194337,0.02543508,112450.0,112440.0,0.14449]
[1760155194641,0.47506548,112450.0,112440.0,0.14449]
[1760155195938,0.50704072,112450.0,112440.0,0.14449]
[1760155196138,0.90704072,112450.0,112440.0,0.14449]
[1760155196539,0.87506548,112450.0,112440.0,0.14449]
[1760155197239,0.90704072,112450.0,112440.0,0.01269]
[1760155197436,0.0888383,112440.0,112430.0,0.01269]
[1760155197633,0.85719045,112440.0,112430.0,0.01269]
[1760155197833,0.0888462,112430.0,112420.0,0.01269]
[1760155198036,0.50705652,112430.0,112420.0,0.01269]
[1760155198234,0.87508128,112430.0,112420.0,0.01269]
[1760155198638,0.0888541,112420.0,112410.0,0.01374]
[1760155198844,0.85720625,112420.0,112410.0,0.01374]
[1760155199343,0.0888621,112410.0,112400.0,0.01311]
[1760155199538,0.50697494,112410.0,112400.0,0.01311]
[1760155199943,0.90697494,112410.0,112400.0,0.01311]
[1760155201442,0.0888779,112390.0,112380.0,0.01311]
[1760155201746,0.0888858,112380.0,112370.0,0.01319131]
[1760155201947,0.82526271,112380.0,112370.0,0.01319131]
[1760155202142,1.22526271,112380.0,112370.0,0.01319131]
[1760155202544,1.22526271,112380.0,112370.0,8.131e-05]
[1760155202949,1.22526271,112380.0,112370.0,0.01319131]
[1760155203449,0.82526271,112380.0,112370.0,0.04448131]
[1760155203652,1.22526271,112380.0,112370.0,8.131e-05]
[1760155204551,0.0889016,112360.0,112350.0,0.01311]
[1760155204750,0.0889174,112340.0,112330.0,0.01311]
[1760155204948,1.16065923,112340.0,112330.0,0.01311]
[1760155205144,1.56065923,112340.0,112330.0,0.01311]
[1760155205349,0.0889253,112330.0,112320.0,0.01311]
[1760155205550,0.47816297,112330.0,112320.0,0.01311]
[1760155205856,0.0889333,112320.0,112310.0,0.01311]
[1760155206054,0.79996523,112320.0,112310.0,0.01311]
[1760155206855,0.82828666,112320.0,112310.0,0.01311]
[1760155207455,0.82828666,112320.0,112310.0,0.02311]
[1760155208754,0.37855336,112320.0,112310.0,0.4444]
[1760155208953,0.82828666,112320.0,112310.0,0.4444]
[1760155209660,0.82828666,112320.0,112310.0,0.0444]
[1760155209954,0.11734483,112320.0,112310.0,0.0444]
[1760155210153,0.02841153,112320.0,112310.0,0.8941412]
[1760155210354,0.02841153,112320.0,112310.0,0.5333412]
[1760155210560,0.02841153,112320.0,112310.0,0.1333412]
[1760155210762,9.01e-05,112320.0,112310.0,0.0444]
[1760155211257,0.46794871,112320.0,112310.0,0.0444]
[1760155211456,0.37901541,112320.0,112310.0,0.4444]
[1760155211758,0.37901541,112320.0,112310.0,0.8052]
[1760155211952,0.37901541,112320.0,112310.0,0.4444]
[1760155212561,0.37901541,112320.0,112310.0,0.0444]
[1760155212862,0.73981541,112320.0,112310.0,0.0444]
[1760155213063,0.37901541,112320.0,112310.0,0.0444]
[1760155213261,0.02887358,112320.0,112310.0,0.0444]
[1760155213456,0.4498234,112320.0,112310.0,0.0444]
[1760155214266,0.4498234,112320.0,112310.0,0.02311]
[1760155214954,0.47849154,112320.0,112310.0,0.02311]
[1760155216057,0.47849154,112320.0,112310.0,0.0444]
[1760155216262,0.73970007,112320.0,112310.0,0.0444]
[1760155216655,0.82863337,112320.0,112310.0,0.0444]
[1760155217260,0.02875262,112320.0,112310.0,0.8941412]
[1760155217563,9.01e-05,112320.0,112310.0,0.8941412]
[1760155218460,0.83172529,112360.0,112350.0,0.01311]
[1760155218762,0.82851835,112360.0,112350.0,0.01311]
[1760155218964,0.0889095,112350.0,112340.0,0.01311]
[1760155219164,0.47838032,112350.0,112340.0,0.13311]
[1760155219359,0.87838032,112350.0,112340.0,0.13311]
[1760155219865,0.47838032,112350.0,112340.0,0.13311]
[1760155220365,0.51025808,112350.0,112340.0,0.13311]
[1760155220866,0.47838032,112350.0,112340.0,0.13311]
[1760155221062,0.47838032,112350.0,112340.0,0.1544]
[1760155221256,0.91125808,112350.0,112340.0,0.1544]
[1760155221461,0.91125808,112350.0,112340.0,0.13311]
[1760155222165,0.91025808,112350.0,112340.0,0.13311]
[1760155222369,0.91125808,112350.0,112340.0,0.13311]
[1760155223366,0.87938032,112350.0,112340.0,0.13311]
[1760155223566,1.29154642,112350.0,112340.0,0.13311]
[1760155223866,0.47938032,112350.0,112340.0,0.15442]
[1760155224062,0.89154642,112350.0,112340.0,0.15442]
[1760155224265,1.29154642,112350.0,112340.0,0.13311]
[1760155224471,1.35515725,112350.0,112340.0,0.13311]
[1760155224661,0.89154642,112350.0,112340.0,0.15442]
[1760155224971,0.95515725,112350.0,112340.0,0.13311]
[1760155226367,0.95515725,112350.0,112340.0,0.15442]
[1760155226660,0.59435725,112350.0,112340.0,0.15442]
[1760155226866,0.95515725,112350.0,112340.0,0.15442]
[1760155227264,1.29154642,112350.0,112340.0,0.13311]
[1760155227573,1.29054642,112350.0,112340.0,0.13311]
[1760155227872,1.29054642,112350.0,112340.0,0.15442]
[1760155227873,1.29154642,112350.0,112340.0,0.15442]
[1760155228273,0.89154642,112350.0,112340.0,0.15442]
[1760155229471,0.96966312,112350.0,112340.0,0.08506342]
[1760155229769,0.96966312,112350.0,112340.0,0.09845342]
[1760155229970,0.96966312,112350.0,112340.0,0.11976342]
[1760155231168,0.96966312,112350.0,112340.0,0.09845342]
[1760155232970,0.96966312,112350.0,112340.0,0.02638304]
[1760155233171,0.55749702,112350.0,112340.0,0.04769304]
[1760155233370,0.96966312,112350.0,112340.0,0.04769304]
[1760155234264,0.10778752,112350.0,112340.0,0.53661054]
[1760155234468,0.02967082,112350.0,112340.0,0.89741054]
[1760155234668,0.18136757,112350.0,112340.0,0.44769304]
[1760155234865,0.18236757,112350.0,112340.0,0.04769304]
[1760155235070,0.11858032,112350.0,112340.0,0.13661054]
[1760155235877,0.89154642,112350.0,112340.0,0.04769304]
[1760155236377,0.89154642,112350.0,112340.0,0.02638304]
[1760155236876,0.89054642,112350.0,112340.0,0.02638304]
[1760155237071,0.89054642,112350.0,112340.0,0.04769304]
[1760155237675,0.89154642,112350.0,112340.0,0.04769304]
[1760155237978,0.47938032,112350.0,112340.0,0.04769304]
[1760155238181,0.80263692,112350.0,112340.0,0.53661054]
[1760155238479,0.86642417,112350.0,112340.0,0.53661054]
[1760155238780,0.50562417,112350.0,112340.0,0.53661054]
[1760155239081,0.18236757,112350.0,112340.0,0.53661054]
[1760155239275,0.95533367,112350.0,112340.0,0.44769304]
[1760155239680,0.95533367,112350.0,112340.0,0.02638304]
[1760155239973,0.59353367,112350.0,112340.0,0.04769304]
[1760155240177,0.95433367,112350.0,112340.0,0.04769304]
[1760155240570,0.95433367,112350.0,112340.0,0.13661054]
[1760155240776,0.45325807,112350.0,112340.0,0.53661054]
[1760155240976,0.45425807,112350.0,112340.0,0.53661054]
[1760155241777,0.18236757,112350.0,112340.0,0.44769304]
[1760155242175,0.95534515,112350.0,112340.0,0.04769304]
[1760155242376,0.95534885,112350.0,112340.0,0.04769304]